fUST/lending_fUST_20240915
["ID","MTS","AMOUNT","RATE_DAILY","PERIOD"]
[338205313,1726385443636,-10000.0,0.00024658,7]
[338205315,1726385443649,-151.0,0.00024658,7]
[338205317,1726385443658,-270.028392,0.00024658,7]
[338205318,1726385443670,-9212.89662443,0.00024658,7]
[338205321,1726385443682,-319.87233744,0.00024658,7]
[338207218,1726386405403,-212.5,0.00019327,2]
[338207219,1726386405426,-212.5,0.0001938,2]
[338207220,1726386405450,-125.40272372,0.00019433,2]
[338207222,1726386437883,-87.09727628,0.00019433,2]
[338207223,1726386437911,-212.5,0.00019486,2]
[338207224,1726386437936,-212.5,0.00019539,2]
[338207225,1726386437958,-3004.30025046,0.00019562,2]
[338207226,1726386437983,-212.5,0.00019592,2]
[338207227,1726386438011,-212.5,0.00019645,2]
[338207228,1726386438035,-163.336442,0.00019645,2]
[338207229,1726386438058,-150.0,0.00019662,2]
[338207230,1726386438082,-524.0,0.00019662,2]
[338207231,1726386438106,-212.5,0.00019698,2]
[338207232,1726386438129,-212.5,0.00019751,2]
[338207233,1726386438154,-212.5,0.00019804,2]
[338207234,1726386438179,-212.5,0.00019857,2]
[338207235,1726386438204,-300.0,0.00019883,2]
[338207236,1726386438226,-300.0,0.00019883,2]
[338207237,1726386438250,-18771.26603126,0.00019884,2]
[338207238,1726386446382,-6128.73396874,0.00019884,2]
[338207239,1726386446406,-212.5,0.0001991,2]
[338207240,1726386446430,-212.5,0.00019963,2]
[338207243,1726386484248,5000.0,0.00011991,2]
[338207244,1726386499766,5000.0,0.00011991,2]
[338207245,1726386515114,5000.0,0.00011991,2]
[338207246,1726386532236,5000.0,0.00011991,2]
[338207248,1726386548087,2145.30223655,0.00011991,2]
[338207335,1726386638296,-212.5,0.00020016,2]
[338207337,1726386638306,-412.5152092,0.00020057,2]
[338207339,1726386638315,-212.5,0.00020069,2]
[338207342,1726386638326,-212.5,0.00020122,2]
[338207344,1726386638335,-212.5,0.00020175,2]
[338207346,1726386638344,-212.5,0.00020228,2]
[338207348,1726386638354,-500.0,0.0002028,2]
[338207350,1726386638364,-212.5,0.00020281,2]
[338207352,1726386638373,-212.5,0.00020334,2]
[338207354,1726386638382,-359.239582,0.00020489,2]
[338207356,1726386638391,-359.239582,0.00020494,2]
[338207358,1726386638402,-359.239582,0.00020499,2]
[338207360,1726386638411,-359.239582,0.00020505,2]
[338207362,1726386638423,-359.239582,0.0002051,2]
[338207364,1726386638432,-359.239582,0.00020516,2]
[338207365,1726386638441,-359.239582,0.00020521,2]
[338207368,1726386638451,-359.239582,0.00020526,2]
[338207370,1726386638461,-359.239582,0.00020532,2]
[338207372,1726386638471,-359.239582,0.00020537,2]
[338207374,1726386638482,-359.239582,0.00020543,2]
[338207376,1726386638494,-359.239582,0.00020548,2]
[338207378,1726386638505,-359.239582,0.00020553,2]
[338207380,1726386638515,-359.239582,0.00020559,2]
[338207382,1726386638524,-300.0,0.00020559,2]
[338207384,1726386638533,-359.239582,0.00020564,2]
[338207385,1726386638542,-359.239582,0.00020569,2]
[338207386,1726386638551,-359.239582,0.00020575,2]
[338207388,1726386638562,-359.239582,0.0002058,2]
[338207390,1726386638574,-359.239582,0.00020586,2]
[338207392,1726386638584,-359.239582,0.00020591,2]
[338207394,1726386638593,-150.0,0.00021,2]
[338207396,1726386638602,-1000.0,0.0002165,2]
[338207398,1726386638612,-244.84,0.000218,2]
[338207400,1726386638622,-515.18159036,0.00021989,2]
[338207402,1726386638632,-150.0,0.00022,2]
[338207404,1726386638641,-150.708476,0.00022,2]
[338207406,1726386638651,-150.0,0.00022192,2]
[338207408,1726386638660,-420.0,0.00022615,2]
[338207410,1726386638669,-150.0,0.00022662,2]
[338207411,1726386638679,-524.0,0.00022662,2]
[338207413,1726386638690,-150.0,0.00023,2]
[338207416,1726386638700,-150.0,0.00023014,2]
[338207418,1726386638710,-208.579808,0.00023099,2]
[338207420,1726386638721,-208.579808,0.00023099,2]
[338207422,1726386638730,-153.0,0.0002328,2]
[338207424,1726386638741,-17432.41141066,0.00023292,2]
[338207426,1726386638753,-1386.98791724,0.00023292,2]
[338207428,1726386638762,-1500.0,0.00023653,2]
[338207430,1726386638772,-153.0,0.00023778,2]
[338207432,1726386638783,-306.0,0.00023808,2]
[338207434,1726386638792,-208.579808,0.00023921,2]
[338207436,1726386638802,-417.159616,0.00023921,2]
[338207439,1726386638812,-208.579808,0.00023921,2]
[338207440,1726386638822,-420.8055593,0.00023996,2]
[338207442,1726386638832,-1000.0,0.00024,2]
[338207445,1726386638842,-150.0,0.00024,2]
[338207447,1726386638851,-302.36509981,0.00024,2]
[338207449,1726386638860,-306.0,0.00024102,2]
[338207451,1726386638870,-153.0,0.00024102,2]
[338207453,1726386638880,-306.0,0.00024102,2]
[338207455,1726386638890,-306.0,0.00024102,2]
[338207457,1726386638899,-156.0,0.00024164,2]
[338207459,1726386638908,-302.36509981,0.0002424,2]
[338207461,1726386638919,-2249.0,0.0002448,2]
[338207462,1726386638929,-302.36509981,0.0002448,2]
[338207464,1726386638938,-6072.37310282,0.00024531,2]
[338207466,1726386638949,-500.0,0.00024653,2]
[338207468,1726386638958,-150.01,0.00024657,2]
[338207470,1726386638968,-858.30846656,0.00024657,2]
[338207472,1726386638977,-500.0,0.00024658,9]
[338207474,1726386638987,-500.0,0.00024658,9]
[338207476,1726386638997,-500.0,0.00024683,2]
[338207478,1726386639006,-302.36509981,0.0002472,2]
[338207480,1726386639016,-208.579808,0.00024818,2]
[338207482,1726386639026,-208.579808,0.00024818,2]
[338207484,1726386639036,-208.579808,0.00024818,2]
[338207486,1726386639045,-208.579808,0.00024818,2]
[338207488,1726386639055,-208.579808,0.00024818,2]
[338207490,1726386639065,-208.579808,0.00024818,2]
[338207492,1726386639074,-208.579808,0.00024818,2]
[338207494,1726386639083,-208.579808,0.00024818,2]
[338207496,1726386639093,-208.579808,0.00024818,2]
[338207499,1726386639104,-208.579808,0.00024818,2]
[338207501,1726386639113,-587.0,0.00024876,2]
[338207503,1726386639122,-181.66782443,0.0002496,2]
[338207505,1726386639135,-120.69727538,0.0002496,2]
[338207507,1726386639144,-164.38218889,0.00025,2]
[338207509,1726386639154,-227.54262183,0.00025,2]
[338207511,1726386639164,-500.0,0.00025,4]
[338207513,1726386639175,-150.0,0.00025,2]
[338207515,1726386639184,-200.0,0.00025,5]
[338207517,1726386639194,-200.0,0.00025,5]
[338207519,1726386639204,-200.0,0.00025,5]
[338207521,1726386639214,-200.0,0.00025,5]
[338207523,1726386639223,-200.0,0.00025,2]
[338207525,1726386639232,-1033.03492369,0.00025,2]
[338207528,1726386639243,-150.0,0.00025,2]
[338207530,1726386639252,-154.71094565,0.000251,10]
[338207532,1726386639262,-4062.410311,0.000252,30]
[338207534,1726386639271,-453.54764972,0.000252,4]
[338207536,1726386639281,-150.0,0.00025254,2]
[338207538,1726386639290,-453.54764972,0.0002544,4]
[338207540,1726386639299,-900.0,0.00025469,3]
[338207542,1726386639309,-150.0,0.00025662,2]
[338207544,1726386639318,-524.0,0.00025662,2]
[338207546,1726386639328,-453.54764972,0.0002568,4]
[338207548,1726386639338,-7212.41373818,0.0002578,3]
[338207550,1726386639347,-2280.11790616,0.0002578,3]
[338207552,1726386639357,-7212.41373818,0.000258,3]
[338207554,1726386639366,-2280.11790616,0.000258,4]
[338207556,1726386639375,-453.54764972,0.0002592,4]
[338207558,1726386639384,-17871.72552055,0.0002595,3]
[338207560,1726386639396,-802.55753324,0.0002595,3]
[338207567,1726386639453,-3454.74694621,0.0002595,3]
[338207569,1726386639463,-26554.83,0.0002596,3]
[338207571,1726386639472,-14700.0,0.0002597,3]
[338207573,1726386639488,-7212.41373818,0.0002597,4]
[338207575,1726386639498,-2280.11790616,0.0002597,4]
[338207577,1726386639507,-14424.8274764,0.0002598,4]
[338207579,1726386639517,-4560.23581232,0.0002598,4]
[338207581,1726386639526,-7212.41373818,0.0002599,4]
[338207584,1726386639536,-2280.11790616,0.0002599,4]
[338207586,1726386639546,-2000.0,0.00025994,2]
[338207588,1726386639555,-295.0142476,0.00025999,2]
[338207590,1726386639564,-299.88,0.00026,2]
[338207591,1726386639576,-200.0,0.00026,2]
[338207594,1726386639586,-1000.5,0.00026,31]
[338207595,1726386639595,-1000.5,0.00026,31]
[338207597,1726386639604,-1132.0,0.00026,31]
[338207600,1726386639614,-44103.17057426,0.00026,30]
[338207601,1726386639623,-524.50320157,0.00026,2]
[338207603,1726386639633,-1000.0,0.00026,2]
[338207606,1726386639643,-150.0,0.00026,2]
[338207608,1726386639652,-1000.0,0.00026022,2]
[338207609,1726386639662,-1000.0,0.00026052,2]
[338207611,1726386639672,-461.60817708,0.0002616,4]
[338207614,1726386639681,-660.0,0.00026301,2]
[338207616,1726386639691,-7458.94652043,0.0002649,2]
[338207618,1726386639700,-150.0,0.00026581,2]
[338207620,1726386639710,-200.0,0.00027,2]
[338207622,1726386639719,-150.0,0.00027,2]
[338207624,1726386639728,-7212.41373818,0.00027209,4]
[338207626,1726386639739,-2280.11790616,0.00027209,4]
[338207628,1726386639748,-600.0,0.00027229,10]
[338207630,1726386639758,-600.0,0.00027229,10]
[338207632,1726386639767,-600.0,0.00027229,10]
[338207634,1726386639776,-600.0,0.00027229,10]
[338207636,1726386639785,-600.0,0.00027229,10]
[338207638,1726386639795,-600.0,0.00027229,10]
[338207640,1726386639804,-600.0,0.00027229,10]
[338207642,1726386639813,-600.0,0.00027229,10]
[338207644,1726386639822,-600.0,0.00027229,10]
[338207646,1726386639831,-600.0,0.00027229,10]
[338207648,1726386639841,-600.0,0.00027229,10]
[338207650,1726386639850,-1017.70533301,0.00027229,10]
[338207652,1726386639862,-500.0,0.00027229,10]
[338207654,1726386639871,-500.0,0.00027229,10]
[338207656,1726386639881,-500.0,0.00027229,10]
[338207658,1726386639890,-500.0,0.00027229,10]
[338207661,1726386639900,-500.0,0.00027229,10]
[338207663,1726386639910,-565.65565113,0.00027229,10]
[338207665,1726386639920,-823.0,0.00027364,2]
[338207667,1726386639929,-150.0,0.00027616,2]
[338207669,1726386639939,-7212.41373818,0.00027866,4]
[338207671,1726386639949,-2280.11790616,0.00027866,4]
[338207673,1726386639958,-151.0,0.00027876,2]
[338207675,1726386639967,-500.0,0.00027973,5]
[338207677,1726386639977,-500.0,0.00027973,5]
[338207679,1726386639986,-500.0,0.00027973,2]
[338207681,1726386639996,-10000.0,0.0002798,7]
[338207683,1726386640006,-10000.0,0.0002798,7]
[338207685,1726386640015,-10000.0,0.0002798,7]
[338207687,1726386640024,-151.0,0.0002799,7]
[338207689,1726386640033,-150.0,0.00028,2]
[338207691,1726386640042,-150.0,0.00028,2]
[338207693,1726386640051,-4038.95701404,0.00028,2]
[338207695,1726386640060,-200.0,0.00028,2]
[338207697,1726386640070,-600.0,0.00028,30]
[338207699,1726386640079,-600.0,0.00028,30]
[338207701,1726386640089,-600.0,0.00028,30]
[338207703,1726386640099,-600.0,0.00028,30]
[338207705,1726386640109,-600.0,0.00028,30]
[338207707,1726386640120,-600.0,0.00028,30]
[338207730,1726386640326,-600.0,0.00028,30]
[338207733,1726386640343,-600.0,0.00028,30]
[338207735,1726386640353,-600.0,0.00028,30]
[338207737,1726386640364,-600.0,0.00028,30]
[338207739,1726386640374,-600.0,0.00028,30]
[338207741,1726386640384,-600.0,0.00028,30]
[338207743,1726386640395,-600.0,0.00028,30]
[338207745,1726386640406,-500.0,0.00028,30]
[338207747,1726386640416,-500.0,0.00028,30]
[338207750,1726386640428,-500.0,0.00028,30]
[338207752,1726386640438,-500.0,0.00028,30]
[338207754,1726386640447,-500.0,0.00028,30]
[338207756,1726386640458,-500.0,0.00028,30]
[338207758,1726386640468,-500.0,0.00028,30]
[338207760,1726386640478,-2624.57,0.00028,2]
[338207762,1726386640487,-299.561731,0.00028,7]
[338207764,1726386640498,-146.18104309,0.00028,2]
[338207788,1726386640724,-3.81895691,0.00028,2]
[338207790,1726386640734,-151.0,0.00028,7]
[338207792,1726386640746,-170.858955,0.00028,7]
[338207794,1726386640757,-268.40520299,0.00028026,5]
[338207796,1726386640767,-1003.89167332,0.00028056,5]
[338207798,1726386640777,-151.0,0.00028391,7]
[338207800,1726386640787,-306.6548387,0.00028419,2]
[338207802,1726386640797,-172.0852948,0.00028493,2]
[338207804,1726386640807,-1873.53529233,0.00028585,5]
[338207806,1726386640817,-7212.41373818,0.00028607,4]
[338207809,1726386640828,-2280.11790616,0.00028607,4]
[338207811,1726386640839,-7212.41373818,0.00028657,4]
[338207813,1726386640850,-2280.11790616,0.00028657,4]
[338207815,1726386640860,-150.0,0.00028662,2]
[338207817,1726386640870,-524.0,0.00028662,2]
[338207819,1726386640879,-10000.0,0.00028667,7]
[338207821,1726386640889,-10000.0,0.00028667,7]
[338207823,1726386640898,-10000.0,0.00028667,7]
[338207825,1726386640907,-414.5768081,0.0002874,2]
[338207827,1726386640917,-7212.41373818,0.00028747,4]
[338207829,1726386640926,-2280.11790616,0.00028747,4]
[338207831,1726386640936,-270.028392,0.00028757,7]
[338207833,1726386640946,-282.000295,0.00028767,7]
[338207835,1726386640955,-153.303536,0.00028767,7]
[338207837,1726386640965,-153.303536,0.00028767,7]
[338207839,1726386640975,-12872.32,0.00028767,7]
[338207841,1726386640985,-10000.0,0.00028987,7]
[338207843,1726386640995,-10000.0,0.00028987,7]
[338207845,1726386641005,-1074.90085,0.00028987,7]
[338207847,1726386641014,-150.0,0.00028997,2]
[338207849,1726386641024,-200.0,0.00029,2]
[338207851,1726386641034,-854.68474707,0.00029,2]
[338207853,1726386641044,-150.0,0.00029,2]
[338207855,1726386641053,-153.0,0.00029216,2]
[338207857,1726386641063,-153.0,0.00029216,2]
[338207859,1726386641072,-153.0,0.00029216,2]
[338207861,1726386641082,-153.0,0.00029216,2]
[338207863,1726386641091,-262.213747,0.00029336,7]
[338207865,1726386641100,-1000.0,0.00029342,5]
[338207867,1726386641110,-1000.0,0.00029342,5]
[338207869,1726386641119,-501.74878778,0.00029342,2]
[338207871,1726386641128,-151.0,0.00029345,7]
[338207873,1726386641139,-5000.0,0.00029787,2]
[338207875,1726386641149,-7212.41373818,0.00029853,4]
[338207877,1726386641158,-2280.11790616,0.00029853,4]
[338207879,1726386641168,-12872.32,0.00029863,9]
[338207881,1726386641183,-522.09804601,0.00029999,2]
[338207883,1726386641192,-500.0,0.00029999,2]
[338207885,1726386641202,-500.0,0.00029999,2]
[338207887,1726386641212,-500.0,0.00029999,2]
[338207888,1726386641222,-500.0,0.00029999,2]
[338207891,1726386641232,-500.0,0.00029999,2]
[338207893,1726386641243,-500.0,0.00029999,2]
[338207894,1726386641251,-500.0,0.00029999,2]
[338207897,1726386641261,-476.48821987,0.00029999,2]
[338207899,1726386641271,-238.97494089,0.00029999,2]
[338207901,1726386641282,-2000.0,0.0003,3]
[338207903,1726386641293,-190.36079846,0.0003,2]
[338207905,1726386641303,-1000.0,0.0003,2]
[338207907,1726386641313,-150.0,0.0003,2]
[338207909,1726386641323,-1687.280629,0.0003,3]
[338207911,1726386641333,-200.0,0.0003,2]
[338207913,1726386641343,-1500.0,0.0003,2]
[338207915,1726386641352,-200.0,0.0003,120]
[338207917,1726386641363,-374.85,0.0003,12]
[338207919,1726386641373,-1000.0,0.0003,120]
[338207921,1726386641383,-150.0,0.0003,2]
[338207923,1726386641393,-160.12,0.0003,2]
[338207925,1726386641403,-262.0,0.0003,2]
[338207927,1726386641414,-272.25899564,0.0003,2]
[338207929,1726386641424,-734.52,0.000301,7]
[338207931,1726386641434,-812.0,0.000301,2]
[338207933,1726386641444,-174.07976591,0.00030137,2]
[338207935,1726386641455,-151.0,0.00030321,7]
[338207937,1726386641465,-153.303536,0.00030321,7]
[338207939,1726386641475,-153.303536,0.00030321,7]
[338207941,1726386641486,-423.408245,0.00030801,7]
[338207944,1726386641497,-423.408245,0.00030801,7]
[338207945,1726386641507,-7212.41373818,0.00030802,4]
[338207948,1726386641518,-2280.11790616,0.00030802,4]
[338207950,1726386641532,-151.0,0.00030802,7]
[338207952,1726386641543,-5000.0,0.00030812,27]
[338207954,1726386641554,-5000.0,0.00030812,26]
[338207956,1726386641565,-5000.0,0.00030812,31]
[338207958,1726386641583,-5000.0,0.00030812,32]
[338207960,1726386641594,-5000.0,0.00030812,26]
[338207963,1726386641605,-153.303536,0.00030812,7]
[338207965,1726386641616,-153.303536,0.00030812,7]
[338207967,1726386641627,-10000.0,0.00030812,7]
[338207969,1726386641640,-10000.0,0.00030812,7]
[338207972,1726386641651,-153.303536,0.00030913,7]
[338207974,1726386641662,-153.303536,0.00030913,7]
[338207976,1726386641674,-1978.76249506,0.00030935,2]
[338207978,1726386641684,-12872.32,0.00030958,11]
[338207980,1726386641695,-153.303536,0.00030983,7]
[338207982,1726386641705,-153.303536,0.00030983,7]
[338207984,1726386641715,-150.76375916,0.00030984,7]
[338207986,1726386641726,-150.76375916,0.00030984,7]
[338207988,1726386641737,-150.76375916,0.00030984,7]
[338207990,1726386641746,-150.76375916,0.00030984,7]
[338207992,1726386641756,-150.76375916,0.00030984,7]
[338207994,1726386641767,-150.76375916,0.00030984,7]
[338207996,1726386641777,-150.76375916,0.00030984,7]
[338207999,1726386641790,-150.76375916,0.00030984,7]
[338208001,1726386641801,-150.76375916,0.00030984,7]
[338208003,1726386641813,-150.76375916,0.00030984,7]
[338208006,1726386641825,-150.76375916,0.00030984,7]
[338208008,1726386641835,-151.26,0.00030984,7]
[338208010,1726386641846,-164.91956694,0.00030984,7]
[338208012,1726386641857,-164.91956694,0.00030984,7]
[338208014,1726386641868,-164.91956694,0.00030984,7]
[338208016,1726386641877,-164.91956694,0.00030984,7]
[338208018,1726386641886,-164.91956694,0.00030984,7]
[338208020,1726386641896,-164.91956694,0.00030984,7]
[338208022,1726386641906,-164.91956694,0.00030984,7]
[338208023,1726386641915,-164.91956694,0.00030984,7]
[338208025,1726386641926,-164.91956694,0.00030984,7]
[338208027,1726386641935,-165.41,0.00030984,7]
[338208029,1726386641945,-1000.0,0.00031,2]
[338208031,1726386641954,-200.0,0.00031,2]
[338208033,1726386641964,-319.0,0.00031,2]
[338208035,1726386641974,-5000.0,0.00031,7]
[338208038,1726386641984,-3000.0,0.00031,37]
[338208039,1726386641995,-50486.8961673,0.00031035,4]
[338208040,1726386642004,-15960.8253431,0.00031035,4]
[338208041,1726386642014,-423.408245,0.00031035,7]
[338208042,1726386642023,-423.408245,0.00031035,7]
[338208043,1726386642035,-10000.0,0.00031045,7]
[338208044,1726386642047,-10000.0,0.00031045,7]
[338208045,1726386642059,-1596.96221057,0.00031084,5]
[338208046,1726386642070,-552.94949729,0.00031084,5]
[338208047,1726386642081,-423.408245,0.00031084,7]
[338208048,1726386642091,-423.408245,0.00031084,7]
[338208049,1726386642101,-332780.20548995,0.00031084,30]
[338208075,1726386642451,-151.0,0.00030801,7]
[338208077,1726386642461,-152.276451,0.00031035,7]
[338208079,1726386642471,-10678.68634728,0.00031084,30]
[338208081,1726386642483,-11200.040202,0.00031084,30]
[338208084,1726386642503,-40482.31945829,0.00031084,30]
[338208086,1726386642517,-83084.87060248,0.00031084,30]
[338208088,1726386642527,-375.0,0.00031084,30]
[338208090,1726386642537,-1500.0,0.00031346,5]
[338208092,1726386642546,-1500.0,0.00031346,5]
[338208094,1726386642556,-150.0,0.00031662,2]
[338208096,1726386642568,-524.0,0.00031662,2]
[338208098,1726386642582,-562.34318671,0.00031945,120]
[338208101,1726386642593,-1000.0,0.00032,2]
[338208103,1726386642604,-200.0,0.00032,2]
[338208105,1726386642615,-5000.0,0.00032,7]
[338208107,1726386642626,-12872.32,0.00032054,13]
[338208109,1726386642635,-320.0,0.000325,2]
[338208111,1726386642647,-160.0,0.0003282,3]
[338208113,1726386642656,-600.0,0.00032876,2]
[338208115,1726386642666,-600.0,0.00032876,2]
[338208117,1726386642676,-600.0,0.00032876,2]
[338208119,1726386642686,-600.0,0.00032876,2]
[338208121,1726386642696,-606.81884884,0.00032876,2]
[338208123,1726386642706,-1000.0,0.00032876,2]
[338208125,1726386642717,-1000.0,0.00032876,2]
[338208127,1726386642727,-1000.0,0.00032876,2]
[338208129,1726386642736,-1026.72742598,0.00032876,2]
[338208131,1726386642747,-500.0,0.00032978,2]
[338208133,1726386642757,-1000.0,0.00033,2]
[338208135,1726386642766,-150.0,0.00033,2]
[338208137,1726386642778,-200.0,0.00033,2]
[338208139,1726386642788,-731.19343651,0.00033,2]
[338208142,1726386642798,-5000.0,0.00033,7]
[338208144,1726386642808,-262.0,0.00033,2]
[338208146,1726386642818,-262.0,0.00033,2]
[338208147,1726386642829,-500.0,0.00033032,2]
[338208150,1726386642839,-500.0,0.0003304,2]
[338208152,1726386642848,-4382.4599,0.00033084,30]
[338208154,1726386642858,-361.90802199,0.00033129,7]
[338208156,1726386642868,-329.91413388,0.00033129,7]
[338208158,1726386642878,-12872.32,0.0003315,15]
[338208160,1726386642889,-828.72595372,0.00033418,2]
[338208162,1726386642899,-912.46021588,0.00033461,2]
[338208164,1726386642909,-361.90802199,0.00033538,7]
[338208166,1726386642919,-329.91413388,0.00033538,7]
[338208168,1726386642928,-437.0,0.00033666,120]
[338208169,1726386642938,-2000.0,0.00033687,5]
[338208172,1726386642948,-2000.0,0.00033687,5]
[338208173,1726386642958,-500.0,0.00033884,2]
[338208175,1726386642968,-361.90802199,0.00033947,7]
[338208177,1726386642978,-329.91413388,0.00033947,7]
[338208179,1726386642988,-500.0,0.00033972,2]
[338208181,1726386642997,-200.0,0.00034,2]
[338208183,1726386643009,-5000.0,0.00034,7]
[338208185,1726386643019,-1000.0,0.00034,120]
[338208187,1726386643029,-153.303536,0.0003405,14]
[338208189,1726386643038,-153.303536,0.0003405,14]
[338208191,1726386643048,-500.0,0.00034126,2]
[338208193,1726386643058,-500.0,0.00034171,2]
[338208195,1726386643068,-500.0,0.0003423,2]
[338208197,1726386643077,-10000.0,0.00034246,14]
[338208199,1726386643088,-10000.0,0.00034246,14]
[338208202,1726386643098,-12872.32,0.00034246,17]
[338208203,1726386643107,-423.408245,0.00034246,14]
[338208205,1726386643118,-423.408245,0.00034246,14]
[338208208,1726386643127,-160.0,0.00034254,4]
[338208210,1726386643138,-500.0,0.00034323,2]
[338208212,1726386643148,-500.0,0.00034333,2]
[338208214,1726386643157,-361.90802199,0.00034356,7]
[338208216,1726386643167,-329.91413388,0.00034356,7]
[338208218,1726386643177,-500.0,0.00034572,2]
[338208220,1726386643186,-153.303536,0.00034623,14]
[338208222,1726386643196,-153.303536,0.00034623,14]
[338208224,1726386643206,-153.303536,0.00034623,14]
[338208226,1726386643215,-153.303536,0.00034623,14]
[338208227,1726386643224,-153.303536,0.00034623,14]
[338208229,1726386643234,-153.303536,0.00034623,14]
[338208231,1726386643243,-153.303536,0.00034623,14]
[338208233,1726386643253,-153.303528,0.00034623,14]
[338208235,1726386643263,-150.0,0.00034662,2]
[338208237,1726386643273,-524.0,0.00034662,2]
[338208239,1726386643283,-10000.0,0.00034685,14]
[338208241,1726386643293,-10000.0,0.00034685,14]
[338208243,1726386643303,-10000.0,0.00034685,14]
[338208245,1726386643313,-10000.0,0.00034685,14]
[338208247,1726386643323,-10000.0,0.00034685,14]
[338208249,1726386643333,-10000.0,0.00034685,14]
[338208252,1726386643343,-10000.0,0.00034685,14]
[338208254,1726386643353,-10000.0,0.00034685,14]
[338208256,1726386643363,-500.0,0.00034699,2]
[338208257,1726386643372,-423.408245,0.00034724,14]
[338208259,1726386643382,-423.408245,0.00034724,14]
[338208261,1726386643392,-423.408245,0.00034724,14]
[338208263,1726386643401,-423.408245,0.00034724,14]
[338208265,1726386643411,-423.408245,0.00034724,14]
[338208267,1726386643420,-423.408245,0.00034724,14]
[338208269,1726386643430,-423.408245,0.00034724,14]
[338208271,1726386643439,-423.408245,0.00034724,14]
[338208273,1726386643450,-423.408245,0.00034724,14]
[338208275,1726386643460,-423.408245,0.00034724,14]
[338208277,1726386643469,-300.0,0.00034724,2]
[338208279,1726386643479,-290.65021128,0.00034724,2]
[338208281,1726386643488,-319.99983303,0.00034724,2]
[338208283,1726386643498,-285.52473186,0.00034724,2]
[338208285,1726386643508,-154.13958613,0.00034724,2]
[338208287,1726386643518,-436.72073603,0.00034724,2]
[338208289,1726386643528,-223.077423,0.00034724,2]
[338208291,1726386643538,-175.26471427,0.00034724,2]
[338208293,1726386643547,-458.00882397,0.00034724,2]
[338208295,1726386643558,-158.83798137,0.00034724,2]
[338208297,1726386643570,-6203.67496784,0.00034724,2]
[338208299,1726386643581,-150.0,0.00034724,14]
[338208301,1726386643590,-150.0,0.00034724,14]
[338208303,1726386643601,-200.0,0.00034724,14]
[338208305,1726386643611,-3018.96549196,0.00034724,2]
[338208307,1726386643621,-2938.95042028,0.00034724,2]
[338208309,1726386643631,-792.47253919,0.00034724,2]
[338208311,1726386643640,-6440.08374789,0.00034724,2]
[338208313,1726386643650,-513.62489099,0.00034724,2]
[338208316,1726386643660,-5723.8200599,0.00034724,30]
[338208318,1726386643670,-4145.57469775,0.00034724,2]
[338208320,1726386643680,-1183.87014328,0.00034724,2]
[338208322,1726386643691,-4116.40169992,0.00034724,2]
[338208324,1726386643701,-24410.38032891,0.00034724,2]
[338208326,1726386643710,-208684.63908824,0.00034724,30]
[338208328,1726386643720,-9820.38267215,0.00034724,2]
[338208330,1726386643730,-1136.61224554,0.00034724,2]
[338208332,1726386643739,-514.69406648,0.00034724,2]
[338208334,1726386643749,-36889.45584542,0.00034724,30]
[338208336,1726386643760,-1515.38354954,0.00034724,2]
[338208338,1726386643771,-3054.50650277,0.00034724,2]
[338208340,1726386643780,-1017.6301476,0.00034724,2]
[338208342,1726386643790,-55203.53843829,0.00034724,30]
[338208344,1726386643801,-32809.71803312,0.00034724,30]